lending/lending_fUSD_20251216
["ID","MTS","AMOUNT","RATE_DAILY","PERIOD"]
[398576946,1765851046712,-151.0,0.0001689,2]
[398576947,1765851046722,-172.13215309,0.0001689,2]
[398576948,1765851046730,-262.40562923,0.00016899,2]
[398576949,1765851046739,-183.68394046,0.00016899,2]
[398576950,1765851046748,-150.0,0.000169,2]
[398576951,1765851046757,-150.0,0.000169,2]
[398576952,1765851046766,-150.0,0.000169,2]
[398576953,1765851046775,-150.0,0.000169,2]
[398576954,1765851046784,-514.86728885,0.000169,2]
[398576955,1765851046793,-60475.5178,0.000169,2]
[398576956,1765851046801,-515.00572857,0.000169,2]
[398576957,1765851046810,-161.01876804,0.000169,2]
[398576958,1765851046819,-191.334694,0.000169,2]
[398576959,1765851046828,-153.672097,0.000169,2]
[398576960,1765851046837,-158.00537681,0.000169,2]
[398576961,1765851046846,-151.0,0.000169,2]
[398576962,1765851046855,-151.0,0.000169,2]
[398576963,1765851046864,-163.318763,0.000169,2]
[398576964,1765851046874,-151.0,0.000169,2]
[398576965,1765851046883,-151.0,0.000169,2]
[398576966,1765851046892,-151.0,0.000169,2]
[398576967,1765851046901,-151.0,0.000169,2]
[398576968,1765851046910,-151.0,0.000169,2]
[398576969,1765851046919,-151.0,0.000169,2]
[398576970,1765851046928,-151.0,0.000169,2]
[398576971,1765851046937,-151.0,0.000169,2]
[398576972,1765851046946,-151.0,0.000169,2]
[398576973,1765851046955,-151.0,0.000169,2]
[398576974,1765851046964,-177.628188,0.000169,2]
[398576975,1765851046974,-151.0,0.000169,2]
[398576976,1765851046983,-162.510664,0.000169,2]
[398576977,1765851046992,-11724.4553567,0.000169,2]
[398576978,1765851047000,-286.36324873,0.00016912,2]
[398576979,1765851047009,-500.0,0.00016912,2]
[398576980,1765851047019,-500.0,0.00016912,2]
[398576981,1765851047028,-150.0,0.00016912,2]
[398576982,1765851047036,-150.0,0.00016912,2]
[398576983,1765851047045,-351.98165184,0.00016912,2]
[398576984,1765851047054,-208.63046691,0.00016912,2]
[398576985,1765851047063,-44030.0248535,0.00016912,2]
[398576986,1765851047072,-152.684159,0.00016912,2]
[398576987,1765851047081,-212.61185,0.00016912,2]
[398576988,1765851047090,-151.0,0.00016912,2]
[398576989,1765851047099,-150.5665975,0.00016912,2]
[398576990,1765851047108,-721.8267051,0.00016912,2]
[398576991,1765851047117,-151.0,0.00016912,2]
[398576992,1765851047126,-153.347203,0.00016912,2]
[398576993,1765851047135,-151.0,0.00016912,2]
[398576994,1765851047144,-218.076352,0.00016912,2]
[398576995,1765851047154,-151.0,0.00016912,2]
[398576996,1765851047162,-151.0,0.00016912,2]
[398576997,1765851047171,-151.0,0.00016912,2]
[398576998,1765851047181,-151.0,0.00016912,2]
[398576999,1765851047189,-151.0,0.00016912,2]
[398577000,1765851047198,-151.0,0.00016912,2]
[398577001,1765851047207,-151.0,0.00016912,2]
[398577002,1765851047216,-151.0,0.00016912,2]
[398577003,1765851047225,-3298.6160177,0.00016912,2]
[398577004,1765851047234,-205.827372,0.00016912,2]
[398577005,1765851047243,-151.0,0.00016912,2]
[398577006,1765851047252,-151.0,0.00016912,2]
[398577007,1765851047261,-151.0,0.00016912,2]
[398577008,1765851047270,-151.0,0.00016912,2]
[398577009,1765851047278,-151.0,0.00016912,2]
[398577010,1765851047287,-151.0,0.00016912,2]
[398577011,1765851047296,-298.621469,0.00016912,2]
[398577012,1765851047305,-151.0,0.00016912,2]
[398577013,1765851047314,-151.0,0.00016912,2]
[398577014,1765851047322,-151.0,0.00016912,2]
[398577015,1765851047331,-151.0,0.00016912,2]
[398577016,1765851047340,-152.986771,0.00016912,2]
[398577017,1765851047349,-273.669258,0.00016912,2]
[398577018,1765851047361,-151.0,0.00016912,2]
[398577019,1765851047370,-1318.6667591,0.00016912,2]
[398577020,1765851047379,-151.0,0.00016912,2]
[398577021,1765851047389,-151.0,0.00016912,2]
[398577022,1765851047402,-151.0,0.00016912,2]
[398577023,1765851047412,-151.0,0.00016912,2]
[398577024,1765851047421,-151.0,0.00016912,2]
[398577025,1765851047432,-151.0,0.00016912,2]
[398577026,1765851047441,-151.0,0.00016912,2]
[398577027,1765851047451,-151.0,0.00016912,2]
[398577028,1765851047460,-151.0,0.00016912,2]
[398577029,1765851047470,-151.0,0.00016912,2]
[398577030,1765851047479,-233.264541,0.00016912,2]
[398577031,1765851047489,-151.0,0.00016912,2]
[398577032,1765851047499,-151.0,0.00016912,2]
[398577033,1765851047508,-151.0,0.00016912,2]
[398577034,1765851047518,-151.0,0.00016912,2]
[398577035,1765851047529,-532.97523105,0.00016983,2]
[398577036,1765851047540,-151.0,0.00016986,2]
[398577037,1765851047549,-151.0,0.00016986,2]
[398577038,1765851047559,-174.188688,0.00016986,2]
[398577039,1765851047568,-151.0,0.00016986,2]
[398577040,1765851047577,-151.0,0.00016986,2]
[398577041,1765851047586,-151.0,0.00016986,2]
[398577042,1765851047596,-151.0,0.00016986,2]
[398577043,1765851047605,-151.0,0.00016986,2]
[398577044,1765851047614,-151.0,0.00016986,2]
[398577045,1765851047624,-151.0,0.00016986,2]
[398577046,1765851047633,-151.000008,0.00016986,2]
[398577047,1765851047642,-151.0,0.00016986,2]
[398577048,1765851047650,-151.0,0.00016986,2]
[398577049,1765851047659,-251.84807,0.00016986,2]
[398577050,1765851047668,-151.0,0.00016986,2]
[398577051,1765851047677,-151.0,0.00016986,2]
[398577052,1765851047686,-151.0,0.00016986,2]
[398577053,1765851047695,-171.08274,0.00016986,2]
[398577054,1765851047704,-151.0,0.00016986,2]
[398577055,1765851047713,-218.585917,0.00016986,2]
[398577056,1765851047722,-151.0,0.00016986,2]
[398577057,1765851047731,-151.0,0.00016986,2]
[398577058,1765851047740,-151.0,0.00016986,2]
[398577059,1765851047750,-151.0,0.00016986,2]
[398577060,1765851047759,-151.0,0.00016986,2]
[398577061,1765851047768,-151.0,0.00016986,2]
[398577062,1765851047778,-151.0,0.00016986,2]
[398577063,1765851047787,-232.994839,0.00016986,2]
[398577064,1765851047795,-154.916707,0.00016986,2]
[398577065,1765851047804,-151.0,0.00016986,2]
[398577066,1765851047813,-151.0,0.00016986,2]
[398577067,1765851047822,-151.0,0.00016986,2]
[398577068,1765851047832,-260.965933,0.00016986,2]
[398577069,1765851047840,-151.0,0.00016986,2]
[398577070,1765851047849,-53792.74,0.00016986,2]
[398577071,1765851047859,-500.0,0.00016986,2]
[398577072,1765851047868,-150.0,0.0001699,2]
[398577073,1765851047877,-178.05821386,0.0001699,2]
[398577074,1765851047887,-1195.178,0.0001699,2]
[398577075,1765851047896,-397.85364938,0.0001699,2]
[398577076,1765851047906,-500.0,0.00016999,2]
[398577077,1765851047915,-308.88629002,0.00016999,2]
[398577078,1765851047923,-150.0,0.00017,2]
[398577079,1765851047932,-35094.84693969,0.00017,2]
[398577088,1765851729009,2500.0,0.00022,30]
[398577089,1765851829031,476.0,0.000225,120]
[398577093,1765852007443,671.24560562,0.0002,30]
[398577114,1765852232487,-1600.0,0.00015914,2]
[398577115,1765852232496,-250.0,0.00016002,2]
[398577116,1765852232506,-824.01338358,0.0001609,3]
[398577119,1765852238043,-174.98661642,0.0001609,3]
[398577120,1765852238053,-219.15913943,0.000162,5]
[398577121,1765852238102,-826.4072366,0.000162,5]
[398577122,1765852238114,-1090.66059968,0.000162,5]
[398577147,1765852240119,-252.02384439,0.000162,5]
[398577148,1765852240130,-2315.09651318,0.000162,5]
[398577149,1765852240173,-403.73037126,0.000162,5]
[398577150,1765852240183,-250.0,0.00016303,2]
[398577151,1765852240192,-1200.0,0.00016399,2]
[398577152,1765852240202,-3019.91948124,0.000164,2]
[398577153,1765852240211,-125.52139883,0.00016438,2]
[398577154,1765852240223,-750.0,0.00016438,2]
[398577155,1765852240235,-3539.63860117,0.00016438,2]
[398577156,1765852240245,-480.82,0.000165,2]
[398577157,1765852240255,-480.82,0.000165,2]
[398577158,1765852240265,-480.82,0.000165,2]
[398577159,1765852240274,-700.57956836,0.000165,2]
[398577160,1765852240300,-259.08043164,0.000165,2]
[398577161,1765852240309,-300.0,0.000165,2]
[398577162,1765852240318,-553.34,0.000165,2]
[398577163,1765852240328,-231.81,0.000165,2]
[398577164,1765852240338,-658.69,0.000165,2]
[398577165,1765852240347,-150.0,0.000165,2]
[398577166,1765852240356,-150.73,0.000165,2]
[398577167,1765852240366,-4201.7068,0.00016538,2]
[398577168,1765852240375,-168.0,0.00016566,2]
[398577169,1765852240384,-480.82,0.000166,2]
[398577170,1765852240393,-837.02299175,0.0001666,2]
[398577171,1765852240403,-480.82,0.000167,2]
[398577172,1765852240412,-152.91432628,0.00016716,2]
[398577173,1765852240421,-150.0,0.00016716,2]
[398577174,1765852240430,-150.0,0.00016716,2]
[398577175,1765852240439,-150.0,0.00016716,2]
[398577177,1765852240449,-150.0,0.00016716,2]
[398577178,1765852240458,-150.0,0.00016716,2]
[398577179,1765852240467,-202.81881075,0.00016716,2]
[398577180,1765852240476,-241.59271642,0.00016716,2]
[398577183,1765852243145,-258.40728358,0.00016716,2]
[398577184,1765852243155,-10.77956758,0.00016716,2]
[398577185,1765852243305,-192.33146188,0.00016716,2]
[398577186,1765852243314,-150.0,0.00016716,2]
[398577187,1765852243324,-150.0,0.00016716,2]
[398577188,1765852243334,-150.0,0.00016716,2]
[398577189,1765852243343,-150.0,0.00016716,2]
[398577190,1765852243353,-150.0,0.00016716,2]
[398577191,1765852243362,-500.0,0.00016726,2]
[398577192,1765852243371,-177.0,0.00016746,2]
[398577193,1765852243381,-177.0,0.00016755,2]
[398577194,1765852243390,-531.62495178,0.00016773,2]
[398577195,1765852243400,-500.0,0.00016773,2]
[398577196,1765852243409,-502.90573772,0.00016773,2]
[398577197,1765852243419,-500.0,0.00016773,2]
[398577198,1765852243427,-177.0,0.00016779,2]
[398577199,1765852243436,-178.28,0.00016795,2]
[398577200,1765852243446,-178.28,0.00016822,2]
[398577201,1765852243456,-178.28,0.00016822,2]
[398577202,1765852243465,-178.28,0.00016822,2]
[398577203,1765852243474,-178.28,0.00016822,2]
[398577204,1765852243483,-178.28,0.00016822,2]
[398577205,1765852243492,-178.28,0.00016822,2]
[398577206,1765852243502,-178.28,0.00016822,2]
[398577207,1765852243511,-150.0,0.00016853,2]
[398577208,1765852243520,-150.0,0.00016853,2]
[398577210,1765852243530,-150.0,0.00016853,2]
[398577212,1765852243538,-150.0,0.00016853,2]
[398577214,1765852243547,-500.0,0.00016853,2]
[398577216,1765852243557,-150.0,0.00016853,2]
[398577218,1765852243565,-150.0,0.00016853,2]
[398577220,1765852243574,-178.96945875,0.00016853,2]
[398577222,1765852243583,-150.0,0.00016853,2]
[398577223,1765852243592,-867.88526287,0.00016856,2]
[398577224,1765852243601,-500.0,0.00016863,2]
[398577225,1765852243611,-200.0,0.00016864,2]
[398577226,1765852243620,-177.0,0.00016867,2]
[398577227,1765852243629,-177.0,0.00016877,2]
[398577228,1765852243639,-3105.55431059,0.00016891,2]
[398577231,1765852246220,-1869.7001,0.00016891,2]
[398577232,1765852246246,-1395.0,0.00016891,2]
[398577233,1765852246371,-343.43678753,0.00016891,2]
[398577234,1765852246380,-4002.37448993,0.00016899,2]
[398577288,1765853116648,150.0,0.00015534,2]
[398577290,1765853119550,150.0,0.00015534,2]
[398577291,1765853124046,164.55939185,0.00015534,2]
[398577292,1765853126135,150.0,0.00015534,2]
[398577293,1765853133786,155.18933788,0.00015534,2]
[398577302,1765853193479,3566.69,0.00015715,2]
[398577319,1765853369638,177.10189958,0.0001533,2]
[398577320,1765853403848,576.73,0.00013699,2]
[398577333,1765853432293,-1852.42,0.0001583,2]
[398577334,1765853432303,-250.0,0.00015897,2]
[398577335,1765853432312,-697.58,0.00015903,2]
[398577336,1765853432463,-302.42,0.00015903,2]
[398577337,1765853432478,-1150.53,0.0001594,2]
[398577338,1765853432487,-150.0,0.00015966,2]
[398577339,1765853432497,-168.48,0.00016345,2]
[398577341,1765853432506,-150.0,0.00016397,2]
[398577343,1765853432515,-150.0,0.00016397,2]
[398577344,1765853432524,-300.0,0.00016484,2]
[398577345,1765853432533,-1200.0,0.00016484,2]
[398577346,1765853432542,-203.04814919,0.00016485,2]
[398577347,1765853432551,-200.0,0.00016485,2]
[398577348,1765853432560,-207.4,0.00016485,2]
[398577349,1765853432569,-215.0738,0.00016485,2]
[398577350,1765853432578,-223.0315306,0.00016485,2]
[398577351,1765853432588,-231.28369723,0.00016485,2]
[398577352,1765853432596,-239.84119403,0.00016485,2]
[398577354,1765853432605,-248.71531821,0.00016485,2]
[398577356,1765853432615,-257.91778498,0.00016485,2]
[398577357,1765853432624,-578.20924308,0.00016485,2]
[398577358,1765853432633,-300.0,0.0001649,2]
[398577359,1765853432642,-158.84644701,0.0001649,2]
[398577360,1765853432651,-267.46074303,0.0001649,2]
[398577361,1765853432660,-2009.0,0.0001649,2]
[398577362,1765853432669,-1111.04132916,0.0001649,2]
[398577363,1765853432678,-668.65185757,0.0001649,2]
[398577364,1765853432688,-740.0,0.00016498,2]
[398577365,1765853432697,-550.0,0.00016499,2]
[398577366,1765853432706,-558.01532783,0.0001666,2]
[398577367,1765853432716,-178.28,0.000167,2]
[398577368,1765853432725,-553.34,0.000167,2]
[398577369,1765853432735,-480.82,0.000167,2]
[398577370,1765853432745,-464.23,0.000167,2]
[398577371,1765853432754,-170.49,0.000167,2]
[398577372,1765853432763,-150.0,0.000167,2]
[398577373,1765853432772,-178.28,0.000167,2]
[398577374,1765853432781,-553.34,0.000167,2]
[398577375,1765853432791,-150.0,0.000167,2]
[398577376,1765853432800,-170.49,0.000167,2]
[398577377,1765853432809,-150.0,0.000167,2]
[398577378,1765853432818,-464.23,0.000167,2]
[398577379,1765853432828,-480.82,0.000167,2]
[398577380,1765853432837,-150.0,0.000167,2]
[398577381,1765853432847,-150.0,0.000167,2]
[398577382,1765853432858,-658.69,0.000167,2]
[398577383,1765853432867,-150.0,0.000167,2]
[398577384,1765853432876,-1217.66,0.000167,2]
[398577385,1765853432886,-464.23,0.000167,2]
[398577386,1765853432894,-553.34,0.000167,2]
[398577387,1765853432903,-150.0,0.000167,2]
[398577388,1765853432913,-150.0,0.000167,2]
[398577389,1765853432922,-1217.66,0.000167,2]
[398577390,1765853432931,-178.28,0.000167,2]
[398577391,1765853432940,-170.49,0.000167,2]
[398577392,1765853432949,-480.82,0.000167,2]
[398577393,1765853432959,-150.0,0.000167,2]
[398577394,1765853432969,-150.0,0.000167,2]
[398577395,1765853432978,-464.23,0.000167,2]
[398577396,1765853432987,-658.69,0.000167,2]
[398577397,1765853432996,-150.0,0.000167,2]
[398577398,1765853433005,-150.0,0.000167,2]
[398577399,1765853433015,-464.23,0.000167,2]
[398577400,1765853433025,-150.0,0.000167,2]
[398577401,1765853433035,-178.28,0.000167,2]
[398577402,1765853433048,-150.0,0.000167,2]
[398577403,1765853433058,-553.34,0.000167,2]
[398577404,1765853433067,-170.49,0.000167,2]
[398577405,1765853433077,-1217.66,0.000167,2]
[398577406,1765853433087,-150.0,0.000167,2]
[398577407,1765853433097,-464.23,0.000167,2]
[398577408,1765853433106,-480.82,0.000167,2]
[398577409,1765853433116,-150.0,0.000167,2]
[398577410,1765853433127,-150.0,0.000167,2]
[398577411,1765853433137,-658.69,0.000167,2]
[398577412,1765853433146,-553.34,0.000167,2]
[398577413,1765853433155,-150.0,0.000167,2]
[398577414,1765853433165,-150.0,0.000167,2]
[398577415,1765853433175,-150.0,0.000167,2]
[398577416,1765853433184,-464.23,0.000167,2]
[398577417,1765853433194,-658.69,0.000167,2]
[398577418,1765853433203,-150.0,0.000167,2]
[398577419,1765853433212,-553.34,0.000167,2]
[398577420,1765853433221,-178.28,0.000167,2]
[398577421,1765853433230,-150.0,0.000167,2]
[398577422,1765853433239,-170.49,0.000167,2]
[398577423,1765853433249,-1217.66,0.000167,2]
[398577424,1765853433258,-150.0,0.000167,2]
[398577425,1765853433267,-150.0,0.000167,2]
[398577426,1765853433276,-154.51,0.000167,2]
[398577427,1765853433286,-658.69,0.000167,2]
[398577428,1765853433295,-488.14,0.000167,2]
[398577429,1765853433305,-480.82,0.000167,2]
[398577430,1765853433314,-150.0,0.000167,2]
[398577431,1765853433323,-150.0,0.000167,2]
[398577432,1765853433333,-1217.66,0.000167,2]
[398577433,1765853433342,-553.34,0.000167,2]
[398577434,1765853433351,-480.82,0.000167,2]
[398577435,1765853433359,-170.49,0.000167,2]
[398577436,1765853433368,-150.0,0.000167,2]
[398577437,1765853433377,-658.69,0.000167,2]
[398577438,1765853433386,-150.0,0.000167,2]
[398577439,1765853433395,-178.28,0.000167,2]
[398577440,1765853433404,-1217.66,0.000167,2]
[398577441,1765853433415,-170.49,0.000167,2]
[398577442,1765853433424,-553.34,0.000167,2]
[398577443,1765853433433,-150.0,0.000167,2]
[398577444,1765853433442,-480.82,0.000167,2]
[398577445,1765853433451,-658.69,0.000167,2]
[398577446,1765853433460,-464.23,0.000167,2]
[398577447,1765853433469,-500.0,0.00016716,2]
[398577448,1765853433478,-256.83749014,0.00016716,2]
[398577449,1765853433487,-150.0,0.00016716,2]
[398577450,1765853433496,-279.80834697,0.00016716,2]
[398577451,1765853433506,-150.0,0.00016716,2]
[398577452,1765853433515,-500.0,0.00016716,2]
[398577455,1765853433920,-253.77732585,0.00016716,2]
[398577456,1765853433929,-252.05132957,0.00016716,2]
[398577457,1765853433939,-2325.25539707,0.0001674,2]
[398577458,1765853433948,-150.0,0.00016752,2]
[398577459,1765853433958,-2000.0,0.00016764,2]
[398577460,1765853433967,-200.0,0.00016764,2]
[398577461,1765853433976,-500.0,0.00016773,2]
[398577462,1765853433985,-500.0,0.00016773,2]
[398577463,1765853433994,-150.0,0.000168,2]
[398577464,1765853434004,-438.93547201,0.000168,2]
[398577465,1765853434016,-25.29452799,0.000168,2]
[398577466,1765853434026,-553.34,0.000168,2]
[398577467,1765853434035,-1217.66,0.000168,2]
[398577468,1765853434047,-178.28,0.000168,2]
[398577469,1765853434056,-170.49,0.000168,2]
[398577470,1765853434065,-464.23,0.000168,2]
[398577471,1765853434075,-480.82,0.000168,2]
[398577472,1765853434085,-553.34,0.000168,2]
[398577473,1765853434094,-178.28,0.000168,2]
[398577474,1765853434104,-170.49,0.000168,2]
[398577475,1765853434113,-464.23,0.000168,2]
[398577476,1765853434124,-553.34,0.000168,2]
[398577477,1765853434133,-172.12,0.000168,2]
[398577478,1765853434143,-464.23,0.000168,2]
[398577479,1765853434155,-464.23,0.000168,2]
[398577480,1765853434165,-464.23,0.000168,2]
[398577481,1765853434175,-464.23,0.000168,2]
[398577482,1765853434186,-464.23,0.000168,2]
[398577483,1765853434196,-150.0,0.000168,2]
[398577484,1765853434206,-464.23,0.000168,2]
[398577485,1765853434216,-150.87,0.00016822,2]
[398577486,1765853434225,-150.0,0.00016822,2]
[398577487,1765853434235,-300.0,0.00016822,2]
[398577488,1765853434245,-150.0,0.00016829,2]
[398577489,1765853434255,-217.18271104,0.00016833,2]
[398577490,1765853434264,-151.0,0.00016834,2]
[398577491,1765853434274,-250.0,0.00016834,2]
[398577492,1765853434283,-1112.96179974,0.00016834,2]
[398577493,1765853434293,-517.26196354,0.00016834,2]
[398577494,1765853434303,-250.0,0.00016834,2]
[398577495,1765853434313,-264.98700866,0.00016834,2]
[398577496,1765853434323,-733.73752805,0.00016834,2]
[398577497,1765853434333,-1000.0,0.00016834,2]
[398577498,1765853434343,-592.33959832,0.00016834,2]
[398577500,1765853438256,-6004.739,0.00016786,2]
[398577501,1765853438266,-407.66040168,0.00016834,2]
[398577502,1765853438275,-1000.0,0.00016834,2]
[398577503,1765853438285,-500.0,0.00016834,2]
[398577504,1765853438295,-500.0,0.00016834,2]
[398577505,1765853438305,-1000.0,0.00016834,2]
[398577506,1765853438317,-385.33495154,0.00016834,2]
[398577507,1765853438327,-1000.0,0.00016834,2]
[398577508,1765853438341,-1000.0,0.00016834,2]
[398577509,1765853438350,-1000.0,0.00016834,2]
[398577510,1765853438359,-1000.0,0.00016834,2]
[398577511,1765853438368,-1000.0,0.00016834,2]
[398577512,1765853438378,-620.0,0.00016834,2]
[398577513,1765853438387,-1000.0,0.00016834,2]
[398577514,1765853438396,-832.63307771,0.00016834,2]
[398577515,1765853438406,-151.0,0.00016834,2]
[398577516,1765853438415,-164.2284212,0.00016844,2]
[398577517,1765853438425,-434.00414787,0.00016844,2]
[398577518,1765853438441,-11710.68023383,0.00016844,2]
[398577519,1765853438450,-284.74410475,0.00016844,2]
[398577520,1765853438461,-841.43476365,0.00016844,2]
[398577521,1765853438471,-500.0,0.00016853,2]
[398577522,1765853438480,-150.0,0.00016853,2]
[398577523,1765853438490,-198.1402884,0.00016853,2]
[398577524,1765853438501,-301.8597116,0.00016853,2]
[398577525,1765853438511,-513.49346983,0.00016882,2]
[398577526,1765853438521,-6042.32207829,0.00016884,2]
[398577528,1765853438530,-158.00537677,0.00016884,2]
[398577530,1765853438539,-347.07843578,0.00016891,2]
[398577550,1765853439080,-609.06356422,0.00016891,2]
[398577551,1765853439091,-441.43348164,0.00016899,2]
[398577552,1765853439101,-1429.93069979,0.00016899,2]
[398577553,1765853439112,-1134.66670139,0.00016899,2]
[398577554,1765853439122,-553.34,0.000169,2]
[398577555,1765853439131,-45.8563817,0.000169,2]
[398577556,1765853439143,-1171.8036183,0.000169,2]
[398577557,1765853439152,-170.49,0.000169,2]
[398577558,1765853439161,-480.82,0.000169,2]
[398577559,1765853439171,-178.28,0.000169,2]
[398577560,1765853439181,-464.23,0.000169,2]
[398577561,1765853439191,-1171.52950441,0.000169,2]
[398577562,1765853439270,-46.13049559,0.000169,2]
[398577563,1765853439279,-178.28,0.000169,2]
[398577564,1765853439288,-170.49,0.000169,2]
[398577565,1765853439297,-553.34,0.000169,2]
[398577566,1765853439306,-312.54839093,0.000169,2]
[398577567,1765853439339,-151.68160907,0.000169,2]
[398577568,1765853439348,-480.82,0.000169,2]
[398577569,1765853439358,-178.28,0.000169,2]
[398577570,1765853439368,-388.66265975,0.000169,2]
[398577571,1765853439379,-816.68734025,0.000169,2]
[398577572,1765853439387,-464.23,0.000169,2]
[398577573,1765853439397,-464.23,0.000169,2]
[398577574,1765853439406,-464.23,0.000169,2]
[398577575,1765853439414,-455.46218706,0.000169,2]
[398577576,1765853439423,-354.72036566,0.000169,2]
[398577577,1765853439432,-1582.47721686,0.000169,2]
[398577578,1765853439442,-151.0,0.000169,2]
[398577579,1765853439452,-151.0,0.000169,2]
[398577580,1765853439462,-151.0,0.000169,2]
[398577581,1765853439471,-151.0,0.000169,2]
[398577582,1765853439479,-6042.32207825,0.00016915,2]
[398577583,1765853439488,-151.0,0.00016916,2]
[398577584,1765853439497,-151.0,0.00016916,2]
[398577585,1765853439506,-177.0,0.0001692,2]
[398577586,1765853439515,-21477.95594986,0.00016932,2]
[398577587,1765853439525,-151.0,0.00016933,2]
[398577588,1765853439534,-151.0,0.00016933,2]
[398577589,1765853439543,-151.0,0.00016933,2]
[398577590,1765853439552,-151.0,0.00016933,2]
[398577591,1765853439561,-151.0,0.00016933,2]
[398577592,1765853439570,-288.038834,0.00016933,2]
[398577593,1765853439579,-109.14602556,0.00016933,2]
[398577594,1765853439590,-41.85397444,0.00016933,2]
[398577595,1765853439599,-151.000009,0.00016933,2]
[398577596,1765853439608,-60.59106146,0.00016933,2]
[398577597,1765853439620,-90.40893854,0.00016933,2]
[398577598,1765853439630,-151.0,0.00016933,2]
[398577599,1765853439641,-151.0,0.00016933,2]
[398577600,1765853439652,-58.17605146,0.00016933,2]
[398577601,1765853439664,-92.82394854,0.00016933,2]
[398577602,1765853439674,-151.0,0.00016933,2]
[398577603,1765853439683,-65.78196521,0.00016933,2]
[398577606,1765853440363,-85.21803479,0.00016933,2]
[398577607,1765853440372,-151.0,0.00016933,2]
[398577608,1765853440382,-151.0,0.00016933,2]
[398577609,1765853440391,-151.0,0.00016933,2]
[398577610,1765853440399,-320.05864342,0.00016946,2]
[398577611,1765853440482,-5722.26343483,0.00016946,2]
[398577612,1765853440491,-151.0,0.00016947,2]
[398577613,1765853440501,-153.671359,0.00016947,2]
[398577614,1765853440510,-210.773605,0.00016947,2]
[398577615,1765853440519,-151.0,0.00016947,2]
[398577616,1765853440528,-151.0,0.00016947,2]
[398577617,1765853440538,-151.0,0.00016947,2]
[398577618,1765853440547,-151.0,0.00016952,2]
[398577619,1765853440557,-151.0,0.00016952,2]
[398577620,1765853440566,-151.0,0.00016958,2]
[398577621,1765853440575,-151.0,0.00016958,2]
[398577622,1765853440584,-222.284926,0.00016958,2]
[398577623,1765853440593,-151.0,0.00016958,2]
[398577624,1765853440602,-151.0,0.00016958,2]
[398577625,1765853440612,-177.0,0.0001696,2]
[398577626,1765853440621,-979.41254618,0.00016977,2]
[398577627,1765853441566,-5062.90953207,0.00016977,2]
[398577628,1765853441575,-265.23576625,0.00016978,2]
[398577629,1765853441585,-500.0,0.00016983,2]
[398577630,1765853441594,-1972.17,0.00016983,2]
[398577631,1765853441602,-963.13947371,0.00016983,2]
[398577632,1765853442078,-8578.02052629,0.00016983,2]
[398577633,1765853442089,-1509.34,0.00016983,2]
[398577634,1765853442099,-1421.28,0.00016983,2]